lending/lending_fUSD_20260328
["ID","MTS","AMOUNT","RATE_DAILY","PERIOD"]
[418976893,1774703421654,-150.0,0.00045626,120]
[418976894,1774703421689,-150.0,0.00045629,30]
[418976895,1774703421724,-150.0,0.00045644,120]
[418976896,1774703421759,-223.02634997,0.00045651,30]
[418976897,1774703421799,-191.69,0.00045655,120]
[418976898,1774703421835,-387.09758292,0.0004566,120]
[418976899,1774703421870,-150.0,0.00045666,30]
[418976900,1774703421906,-150.0,0.00045678,30]
[418976901,1774703421942,-150.0,0.00045678,30]
[418976902,1774703421976,-3946.39,0.00045685,30]
[418976903,1774703422009,-3946.39,0.00045685,30]
[418976904,1774703422044,-150.0,0.00045689,30]
[418976905,1774703422079,-1159.77,0.0004569,120]
[418976906,1774703422116,-223.02634997,0.00045699,30]
[418976907,1774703422150,-152.30484144,0.000457,120]
[418976908,1774703422184,-150.0,0.00045708,30]
[418976909,1774703422218,-150.0,0.00045718,30]
[418976910,1774703422255,-150.0,0.00045733,120]
[418976911,1774703422289,-150.0,0.00045742,30]
[418976912,1774703422324,-150.0,0.00045742,30]
[418976913,1774703422360,-223.02634997,0.00045747,30]
[418976914,1774703422395,-150.0,0.0004575,30]
[418976915,1774703422428,-500.0,0.00045753,120]
[418976916,1774703422463,-579.60159487,0.00045753,120]
[418976917,1774703422497,-500.0,0.00045753,120]
[418976918,1774703422531,-500.0,0.00045753,120]
[418976919,1774703422566,-500.0,0.00045753,120]
[418976920,1774703422600,-500.0,0.00045753,120]
[418976921,1774703422634,-500.0,0.00045753,120]
[418976922,1774703422668,-500.0,0.00045753,120]
[418976923,1774703422703,-500.0,0.00045753,120]
[418976924,1774703422738,-500.0,0.00045753,120]
[418976925,1774703422772,-500.0,0.00045753,120]
[418976926,1774703422807,-500.0,0.00045753,120]
[418976927,1774703422840,-500.0,0.00045753,120]
[418976928,1774703422874,-500.0,0.00045753,120]
[418976929,1774703422907,-500.0,0.00045753,120]
[418976930,1774703422940,-500.0,0.00045753,120]
[418976931,1774703422975,-500.0,0.00045753,120]
[418976932,1774703423013,-500.0,0.00045753,120]
[418976933,1774703423047,-500.0,0.00045753,120]
[418976934,1774703423081,-500.0,0.00045753,120]
[418976935,1774703423115,-424.79150445,0.00045753,120]
[418976936,1774703423149,-500.0,0.00045753,120]
[418976937,1774703423185,-191.69,0.00045755,120]
[418976938,1774703423322,-150.0,0.00045766,30]
[418976939,1774703423361,-250.0,0.00045773,105]
[418976940,1774703423399,-150.0,0.00045794,30]
[418976941,1774703423436,-223.02634997,0.00045794,30]
[418976942,1774703423473,-2000000.0,0.000458,120]
[418976943,1774703423508,-352.72,0.000458,120]
[418976944,1774703423542,-175.74747347,0.000458,30]
[418976945,1774703423577,-537.22593453,0.000458,120]
[418976946,1774703423612,-330.2,0.000458,30]
[418976947,1774703423647,-150.0,0.00045806,30]
[418976948,1774703423681,-150.0,0.00045806,30]
[418976949,1774703423716,-150.0,0.00045823,30]
[418976950,1774703423751,-150.0,0.00045823,30]
[418976951,1774703423789,-223.02634997,0.00045842,30]
[418976952,1774703423825,-150.0,0.00045843,30]
[418976953,1774703423864,-191.69,0.00045855,120]
[418976954,1774703423899,-8319.58381024,0.00045868,30]
[418976955,1774703423934,-244.30200218,0.00045869,30]
[418976956,1774703423968,-150.0,0.00045869,30]
[418976957,1774703424003,-150.0,0.00045869,30]
[418976958,1774703424038,-366.90899738,0.0004587,30]
[418976959,1774703424072,-267.57289557,0.0004587,30]
[418976960,1774703424106,-237.08334781,0.0004587,30]
[418976961,1774703424141,-150.0,0.00045871,30]
[418976962,1774703424175,-150.0,0.0004588,30]
[418976963,1774703424210,-385290.23507719,0.00045885,30]
[418976964,1774703424471,488.28,0.00011705,2]
[418976965,1774703430088,-698.61,0.000325,30]
[418976966,1774703430148,-2500.0,0.00042,120]
[418976967,1774703430216,-2550.0,0.000425,120]
[418976968,1774703430251,-2601.0,0.00043,120]
[418976969,1774703430289,-2653.02,0.000435,120]
[418976970,1774703430337,-2706.08,0.00044,120]
[418976971,1774703430373,-532.78,0.000445,120]
[418976972,1774703430414,-698.61,0.00045,30]
[418976973,1774703430451,-652.0,0.00045885,60]
[418976974,1774703430485,-278321.36411198,0.00045885,30]
[418976975,1774703430522,-223.02634997,0.00045889,30]
[418976976,1774703430555,-194586.99969155,0.00045891,30]
[418976977,1774703430591,-1095.3,0.00045894,120]
[418976978,1774703430626,-329.16751667,0.000459,120]
[418976979,1774703430660,-150.0,0.00045901,30]
[418976980,1774703430696,-1159.77,0.00045903,120]
[418976981,1774703430731,-347.07803806,0.00045906,90]
[418976982,1774703430765,-2491267.6836667,0.0004591,30]
[418976983,1774703430954,-150.0,0.0004592,30]
[418976984,1774703430991,-225.73402019,0.00045922,30]
[418976985,1774703431027,-292807.61686662,0.00045926,30]
[418976986,1774703431062,-641.55952253,0.00045926,30]
[418976987,1774703431096,-150.0,0.00045927,30]
[418976988,1774703431130,-674729.63659259,0.00045931,30]
[418976989,1774703431165,-150.0,0.00045933,30]
[418976990,1774703431201,-150.0,0.00045933,30]
[418976991,1774703431236,-223.02634997,0.00045937,30]
[418976992,1774703431271,-1397.83,0.00045945,120]
[418976993,1774703431305,-676115.2524534,0.00045947,30]
[418976994,1774703431339,-27620.2627,0.00045952,30]
[418976995,1774703431373,-1210.66,0.00045955,120]
[418976996,1774703431408,-613.62,0.00045955,120]
[418976997,1774703431445,-191.69,0.00045955,120]
[418976998,1774703431480,-500.0,0.00045955,30]
[418976999,1774703431515,-500.0,0.00045955,30]
[418977000,1774703431549,-500.0,0.00045955,30]
[418977001,1774703431583,-500.0,0.00045955,30]
[418977004,1774703431619,-500.0,0.00045955,30]
[418977010,1774703431654,-500.0,0.00045955,30]
[418977013,1774703431689,-500.0,0.00045955,30]
[418977015,1774703431724,-347.71736543,0.00045955,30]
[418977016,1774703431757,-3946.39,0.00045959,30]
[418977017,1774703431791,-3946.39,0.00045959,30]
[418977018,1774703431826,-214.12884353,0.00045963,30]
[418977019,1774703431860,-150.0,0.00045965,30]
[418977020,1774703431895,-150.0,0.0004598,30]
[418977021,1774703431930,-200.0,0.0004598,120]
[418977022,1774703431966,-223.02634997,0.00045984,30]
[418977023,1774703432002,-1000.0,0.00045985,120]
[418977025,1774703432037,-600.0,0.00045985,120]
[418977026,1774703432071,-150.0,0.00045992,30]
[418977027,1774703432107,-150.0,0.00045996,30]
[418977030,1774703432141,-150.0,0.00045996,30]
[418977034,1774703432177,-150.0,0.00045998,30]
[418977035,1774703432212,-1330.45431194,0.00045998,30]
[418977036,1774703432246,-298.40896134,0.00045999,120]
[418977037,1774703432284,-50000.0,0.00046,46]
[418977038,1774703432320,-404.9,0.00046,120]
[418977039,1774703432353,-8494.47300829,0.00046,61]
[418977040,1774703432388,-265144.73327927,0.00046,30]
[418977041,1774703432535,-5000.0,0.00013031,2]
[418977042,1774703432548,-260.74095275,0.00013032,2]
[418977043,1774703432557,-250.0,0.00013033,2]
[418977044,1774703432568,-250.0,0.00013043,2]
[418977045,1774703432577,-584.55025158,0.00013062,2]
[418977046,1774703432587,-200.0,0.00013173,2]
[418977047,1774703432596,-166.66,0.0001318,2]
[418977048,1774703432606,-166.66,0.00013446,2]
[418977049,1774703432615,-150.0,0.00013508,2]
[418977050,1774703432624,-6911.10840627,0.00013509,2]
[418977051,1774703432634,-3240.0,0.00013509,2]
[418977052,1774703432643,-2440.11,0.00013509,2]
[418977053,1774703432652,-1159.87,0.00013509,2]
[418977054,1774703432662,-150.99,0.00013509,2]
[418977055,1774703432671,-9999.99,0.00013509,2]
[418977056,1774703432681,-999.99,0.00013509,2]
[418977057,1774703432691,-9999.99,0.00013509,2]
[418977058,1774703432700,-299.99,0.00013509,2]
[418977059,1774703432710,-166.66,0.00013713,2]
[418977060,1774703432720,-166.66,0.00013979,2]
[418977061,1774703432729,-519.0,0.00014,2]
[418977062,1774703432739,-7029.87228447,0.00014,7]
[418977063,1774703432749,-1684.55818797,0.00014,2]
[418977064,1774703432759,-4147.505,0.00014095,2]
[418977065,1774703432768,-6766.507,0.00014095,2]
[418977066,1774703432778,-165.23241734,0.000141,2]
[418977067,1774703432788,-155.83519096,0.000141,2]
[418977068,1774703432797,-13708.51,0.00014191,2]
[418977069,1774703432806,-555.4473677,0.00014194,2]
[418977070,1774703432816,-500.0,0.00014194,2]
[418977071,1774703432825,-500.0,0.00014194,2]
[418977072,1774703432834,-500.0,0.00014194,2]
[418977073,1774703432843,-500.0,0.00014194,2]
[418977074,1774703432853,-170.57740311,0.00014194,2]
[418977075,1774703432863,-500.0,0.00014194,2]
[418977076,1774703432872,-500.0,0.00014194,2]
[418977077,1774703432882,-500.0,0.00014194,2]
[418977078,1774703432891,-500.0,0.00014194,2]
[418977079,1774703432901,-500.0,0.00014194,2]
[418977080,1774703432912,-500.0,0.00014194,2]
[418977081,1774703432922,-500.0,0.00014194,2]
[418977082,1774703432933,-500.0,0.00014194,2]
[418977083,1774703432943,-500.0,0.00014194,2]
[418977084,1774703432953,-500.0,0.00014194,2]
[418977085,1774703432964,-349.81980044,0.00014194,2]
[418977086,1774703432973,-500.0,0.00014194,2]
[418977087,1774703433087,-500.0,0.00014194,2]
[418977088,1774703433098,-500.0,0.00014194,2]
[418977089,1774703433108,-500.0,0.00014194,2]
[418977090,1774703433117,-500.0,0.00014194,2]
[418977091,1774703433127,-500.0,0.00014194,2]
[418977092,1774703433138,-500.0,0.00014194,2]
[418977093,1774703433148,-500.0,0.00014194,2]
[418977094,1774703433158,-500.0,0.00014194,2]
[418977095,1774703433167,-500.0,0.00014194,2]
[418977096,1774703433177,-500.0,0.00014194,2]
[418977097,1774703433186,-500.0,0.00014194,2]
[418977098,1774703433195,-500.0,0.00014194,2]
[418977099,1774703433205,-250.0,0.00014194,2]
[418977100,1774703433215,-2500.0,0.00014195,2]
[418977101,1774703433224,-93819.99755533,0.00014195,2]
[418977102,1774703433237,-3749.89474467,0.00014195,2]
[418977103,1774703433247,-170.06720585,0.000142,2]
[418977104,1774703433257,-1130.50630058,0.000142,2]
[418977105,1774703433267,-204.62671032,0.000142,2]
[418977106,1774703433276,-248.71521982,0.000142,2]
[418977107,1774703433286,-7378.76647426,0.000142,2]
[418977108,1774703433296,-4886.149444,0.000142,2]
[418977109,1774703433305,-434.27668162,0.000142,2]
[418977110,1774703433315,-333.46245194,0.000142,2]
[418977111,1774703433324,-554.51,0.00014231,2]
[418977112,1774703433334,-500.0,0.00014273,2]
[418977113,1774703433344,-500.0,0.00014273,2]
[418977114,1774703433353,-500.62783858,0.00014273,2]
[418977115,1774703433363,-500.41700518,0.00014273,2]
[418977116,1774703433372,-500.0,0.00014273,2]
[418977117,1774703433382,-451.07975321,0.00014273,2]
[418977118,1774703433391,-500.0,0.00014273,2]
[418977119,1774703433401,-167.5141308,0.00014273,2]
[418977120,1774703433411,-500.0,0.00014273,2]
[418977121,1774703433420,-500.0,0.00014273,2]
[418977122,1774703433430,-314.67574079,0.00014273,2]
[418977123,1774703433439,-164.27795554,0.00014273,2]
[418977124,1774703433452,-245.41415789,0.00014273,2]
[418977125,1774703433462,-501.23124429,0.00014273,2]
[418977126,1774703433471,-500.0,0.00014273,2]
[418977127,1774703433480,-167.35574662,0.00014285,2]
[418977128,1774703433490,-3536.887,0.00014294,2]
[418977129,1774703433500,-224.839,0.00014294,2]
[418977130,1774703433510,-606.88332949,0.00014294,2]
[418977131,1774703433520,-167.85731328,0.00014294,2]
[418977132,1774703433530,-539.11579501,0.00014294,2]
[418977133,1774703433541,-500.0,0.00014294,2]
[418977134,1774703433551,-500.0,0.00014294,2]
[418977135,1774703433560,-384.38640282,0.00014294,2]
[418977136,1774703433572,-500.0,0.00014294,2]
[418977137,1774703433582,-500.0,0.00014294,2]
[418977138,1774703433593,-500.0,0.00014294,2]
[418977139,1774703433602,-500.0,0.00014294,2]
[418977140,1774703433611,-425.71785938,0.00014294,2]
[418977141,1774703433620,-500.0,0.00014294,2]
[418977142,1774703433630,-500.0,0.00014294,2]
[418977143,1774703433639,-500.0,0.00014294,2]
[418977144,1774703433650,-2228.0,0.00014295,5]
[418977145,1774703433660,-9140.05995309,0.00014295,2]
[418977146,1774703433673,-36799.63642489,0.00014295,2]
[418977147,1774703433695,-5392.42622607,0.00014295,2]
[418977148,1774703433707,-9082.31868426,0.00014295,2]
[418977149,1774703435471,-441548.95443965,0.00046,30]
[418977150,1774703435506,-16380.95439497,0.00046,30]
[418977151,1774703435542,-5550.0,0.00046,120]
[418977152,1774703435576,-30077.0,0.00046,30]
[418977153,1774703435610,-11500.0,0.00046,60]
[418977154,1774703435644,-1959.65,0.00046,90]
[418977155,1774703435679,-3700.61010244,0.00046,61]
[418977156,1774703435713,-226.66750554,0.00046,30]
[418977157,1774703435747,-453924.56354962,0.00046,120]
[418977158,1774703435780,-4954.69528919,0.00046,120]
[418977159,1774703435813,-1503.05956496,0.00046,30]
[418977160,1774703435847,-291.17,0.00046,120]
[418977161,1774703435880,-2095.70105987,0.00046,50]
[418977162,1774703435913,-161.25469575,0.00046,120]
[418977163,1774703435948,-576.52016541,0.00046,120]
[418977164,1774703435983,-363.96769676,0.00046,90]
[418977165,1774703436016,-158.96293011,0.00046,120]
[418977166,1774703436050,-3633.9743101,0.00046,30]
[418977167,1774703436084,-8480.0,0.00046,120]
[418977168,1774703436118,-45943.23596,0.00046,30]
[418977169,1774703436151,-266.90172238,0.00046,120]
[418977170,1774703436184,-750.03920147,0.00046,120]
[418977171,1774703436217,-4637.10854033,0.00046,30]
[418977172,1774703436251,-94268.0,0.00046,120]
[418977173,1774703436285,-931.90470784,0.00046,120]
[418977174,1774703436320,-476.65352559,0.00046,120]
[418977175,1774703436354,-155.02698377,0.00046,120]
[418977176,1774703436387,-3667.78760209,0.00046,120]
[418977177,1774703436422,-157.0,0.00046,30]
[418977178,1774703436455,-10110.75512876,0.00046,30]
[418977179,1774703436488,-10046.28579171,0.00046,30]
[418977180,1774703436522,-414915.00138172,0.00046,30]
[418977181,1774703436556,-27175.64925376,0.00046,120]
[418977182,1774703436590,-813.0,0.00046,60]
[418977183,1774703436624,-250.0,0.00046028,120]
[418977184,1774703436659,-10000.0,0.0004603,120]
[418977185,1774703436696,-223.02634997,0.00046032,30]
[418977186,1774703436731,-150.0,0.00046032,30]
[418977187,1774703436766,-150.0,0.00046051,30]
[418977188,1774703436803,-191.69,0.00046055,120]
[418977189,1774703436839,-150.0,0.0004606,30]
[418977190,1774703436873,-150.0,0.0004606,30]
[418977191,1774703436908,-150.0,0.00046075,30]
[418977192,1774703436943,-223.02634997,0.00046079,30]
[418977193,1774703436977,-1530.0,0.000461,30]
[418977194,1774703437011,-150.0,0.00046112,30]
[418977195,1774703437046,-1159.77,0.00046117,120]
[418977196,1774703437081,-150.0,0.00046124,30]
[418977197,1774703437115,-150.0,0.00046124,30]
[418977198,1774703437240,-223.02634997,0.00046127,30]
[418977199,1774703437276,-150.0,0.00046136,30]
[418977200,1774703437313,-150.0,0.00046136,30]
[418977201,1774703437351,-150.0,0.00046136,30]
[418977202,1774703437386,-150.0,0.00046136,30]
[418977203,1774703437423,-151.0,0.00046144,60]
[418977204,1774703437459,-150.0,0.00046152,30]
[418977205,1774703437498,-191.69,0.00046155,120]
[418977206,1774703437533,-150.0,0.0004616,120]
[418977207,1774703437568,-223.02634997,0.00046174,30]
[418977208,1774703437603,-150.0,0.00046187,30]
[418977210,1774703437637,-150.0,0.00046187,30]
[418977212,1774703437671,-1320.22254,0.000462,30]
[418977213,1774703437705,-303.09,0.000462,120]
[418977215,1774703437740,-150.0,0.00046222,30]
[418977216,1774703437776,-223.02634997,0.00046222,30]
[418977217,1774703437811,-150.0,0.00046229,30]
[418977219,1774703437846,-3946.39,0.00046233,30]
[418977220,1774703437881,-3946.39,0.00046233,30]
[418977221,1774703437916,-150.0,0.00046233,30]
[418977222,1774703437951,-150.0,0.00046241,30]
[418977223,1774703437985,-905.96,0.00046243,120]
[418977224,1774703438020,-150.0,0.00046251,30]
[418977225,1774703438055,-150.0,0.00046251,30]
[418977226,1774703438093,-191.69,0.00046255,120]
[418977227,1774703438127,-379.49,0.00046257,120]
[418977228,1774703438164,-223.02634997,0.0004627,30]
[418977229,1774703438198,-1668.52203554,0.00046272,120]
[418977230,1774703438234,-150.0,0.00046293,30]
[418977231,1774703438273,-150.0,0.00046293,30]
[418977233,1774703438310,-169.6,0.000463,120]
[418977236,1774703438344,-180.4635335,0.000463,30]
[418977237,1774703438380,-500.0,0.00046301,120]
[418977238,1774703438415,-600.06330601,0.00046301,120]
[418977239,1774703438449,-500.0,0.00046301,120]
[418977240,1774703438484,-500.0,0.00046301,120]
[418977241,1774703438521,-493.11304112,0.00046301,120]
[418977242,1774703438557,-150.0,0.00046306,30]
[418977243,1774703438593,-150.0,0.00046308,30]
[418977244,1774703438630,-150.0,0.00046315,30]
[418977245,1774703438667,-150.0,0.00046315,30]
[418977246,1774703438706,-223.02634997,0.00046317,30]
[418977247,1774703438743,-1159.77,0.0004633,120]
[418977248,1774703438779,-150.0,0.00046346,30]
[418977249,1774703438816,-185823.0,0.0004635,60]
[418977250,1774703438852,-10309.32528178,0.0004635,30]
[418977251,1774703438895,-150.0,0.00046354,30]
[418977252,1774703438939,-191.69,0.00046355,120]
[418977253,1774703438980,-6986.6,0.00046361,120]
[418977254,1774703439017,-223.02634997,0.00046365,30]
[418977255,1774703439056,-6986.6,0.00046375,120]
[418977256,1774703439092,-150.0,0.00046378,30]
[418977257,1774703439127,-150.0,0.00046378,30]
[418977258,1774703439161,-150.0,0.00046383,30]
[418977259,1774703439196,-6986.62,0.00046388,120]
[418977260,1774703439229,-2110.0,0.00046393,30]
[418977261,1774703439265,-150.0,0.00046393,30]
[418977262,1774703439300,-2000000.0,0.000464,75]
[418977263,1774703439337,-499.0,0.000464,80]
[418977264,1774703439373,-700000.0,0.000464,30]
[418977265,1774703439527,-441581.9839585,0.000464,120]
[418977266,1774703439753,-500.0,0.00014295,2]
[418977267,1774703439765,-1168.94767053,0.00014295,2]
[418977268,1774703439776,-833.66172791,0.00014295,2]
[418977269,1774703439800,-1070.36465114,0.00014295,2]
[418977270,1774703439817,-9628.18131196,0.00014295,2]
[418977271,1774703439828,-2426384.40335015,0.00014295,2]
[418977272,1774703439838,-20639.19,0.000143,2]
[418977273,1774703439848,-3934.34,0.000143,2]
[418977274,1774703439857,-2522.03,0.000143,2]
[418977275,1774703439867,-2617.36,0.000143,2]
[418977276,1774703439876,-3646.64,0.000143,2]
[418977277,1774703439886,-698.61,0.000143,2]
[418977278,1774703439895,-250.0,0.00014334,2]
[418977279,1774703439905,-300.0,0.00014334,2]
[418977280,1774703439915,-5000.0,0.00014334,2]
[418977281,1774703439925,-1262.0,0.0001434,2]
[418977282,1774703439935,-1130.50630055,0.00014389,2]
[418977283,1774703439946,-4886.14944397,0.00014389,2]
[418977284,1774703439956,-150.0,0.000144,2]
[418977286,1774703439966,-1216.0,0.00014418,2]
[418977287,1774703439977,-924.0,0.00014418,2]
[418977288,1774703439988,-2468.0,0.00014418,2]
[418977289,1774703439999,-434.27668155,0.00014443,2]
[418977290,1774703440008,-333.4624519,0.00014443,2]
[418977291,1774703440017,-1045.0,0.00014491,2]
[418977292,1774703440028,-621.0,0.00014491,2]
[418977293,1774703440038,-1130.50630055,0.00014578,2]
[418977294,1774703440048,-4886.14944397,0.00014578,2]
[418977295,1774703440057,-255.0,0.00014615,2]
[418977296,1774703440067,-434.27668155,0.00014686,2]
[418977297,1774703440077,-1130.50630055,0.00014767,2]
[418977298,1774703440089,-4886.14944397,0.00014767,2]
[418977299,1774703440100,-500.0,0.00014821,2]
[418977300,1774703440110,-457.02609075,0.00014821,2]
[418977301,1774703440121,-462.7375,0.000149,2]
[418977302,1774703440131,-434.27668155,0.00014929,2]
[418977303,1774703440141,-24030.67,0.00014932,2]
[418977304,1774703440151,-554.51,0.00014943,2]
[418977305,1774703440160,-1495746.33052664,0.00014953,2]
[418977306,1774703440297,-6012.0,0.00014418,2]
[418977307,1774703440307,-4253.66947336,0.00014953,2]
[418977308,1774703440318,-1130.50630055,0.00014956,2]
[418977309,1774703440327,-4886.14944397,0.00014956,2]
[418977310,1774703440336,-502.3938553,0.00014973,2]
[418977311,1774703440346,-500.0,0.00014973,2]
[418977312,1774703440356,-500.70153886,0.00014973,2]
[418977313,1774703440365,-500.0,0.00014973,2]
[418977314,1774703440375,-417.69514484,0.00014973,2]
[418977315,1774703440384,-501.65054052,0.00014973,2]
[418977316,1774703440393,-500.0,0.00014973,2]
[418977317,1774703440402,-500.79031396,0.00014973,2]
[418977318,1774703440412,-500.0,0.00014973,2]
[418977319,1774703440421,-500.0,0.00014973,2]
[418977320,1774703440431,-500.0,0.00014973,2]
[418977321,1774703440440,-500.84806746,0.00014973,2]
[418977322,1774703440449,-500.0,0.00014973,2]
[418977323,1774703440458,-500.0,0.00014973,2]
[418977324,1774703440467,-500.0,0.00014973,2]
[418977325,1774703440477,-500.0,0.00014973,2]
[418977326,1774703440486,-300.0,0.00015,2]
[418977327,1774703440495,-170.06720583,0.00015023,2]
[418977328,1774703440504,-2807.0,0.0001504,2]
[418977329,1774703440513,-2807.0,0.0001504,2]
[418977330,1774703440522,-204.62671032,0.0001505,2]
[418977331,1774703440531,-7378.76647424,0.0001505,2]
[418977332,1774703440541,-959.64475997,0.00015082,2]
[418977333,1774703440550,-160.0,0.00015082,2]
[418977334,1774703440559,-160.0,0.00015082,2]
[418977335,1774703440568,-160.0,0.00015082,2]
[418977336,1774703440577,-1130.50630055,0.00015144,2]
[418977337,1774703440587,-4886.14944397,0.00015144,2]
[418977338,1774703440596,-434.27668155,0.00015171,2]
[418977339,1774703440606,-277.0,0.00015326,2]
[418977340,1774703440615,-1130.50630055,0.00015333,2]
[418977341,1774703440624,-4886.14944397,0.00015333,2]
[418977342,1774703440633,-250.0,0.00015338,2]
[418977343,1774703440642,-277.0,0.00015354,2]
[418977344,1774703440652,-277.0,0.00015373,2]
[418977345,1774703440661,-434.27668155,0.00015414,2]
[418977346,1774703440671,-277.0,0.00015435,2]
[418977347,1774703440680,-277.0,0.00015437,2]
[418977348,1774703440689,-277.0,0.00015472,2]
[418977349,1774703440699,-277.0,0.00015485,2]
[418977350,1774703440709,-277.0,0.00015493,2]
[418977351,1774703440719,-277.0,0.00015508,2]
[418977352,1774703440727,-1000.0,0.00015521,2]
[418977353,1774703440737,-1000.0,0.00015521,2]
[418977354,1774703440746,-1000.0,0.00015521,2]
[418977355,1774703440755,-1000.0,0.00015521,2]
[418977356,1774703440765,-1130.50630055,0.00015522,2]
[418977357,1774703440860,-4886.14944397,0.00015522,2]
[418977358,1774703440871,-197.2136,0.000156,2]
[418977359,1774703440881,-277.0,0.00015606,2]
[418977360,1774703440890,-151.0,0.00015629,2]
[418977361,1774703440901,-554.51,0.00015654,2]
[418977362,1774703440924,-434.27668155,0.00015657,2]
[418977363,1774703440935,-235.0,0.0001566,2]
[418977364,1774703440945,-225.1652,0.0001568,7]
[418977365,1774703440955,-225.897219,0.0001568,7]
[418977366,1774703440966,-179.500317,0.0001568,7]
[418977367,1774703440977,-201.040355,0.0001568,7]
[418977368,1774703440987,-277.0,0.00015708,2]
[418977369,1774703440997,-1130.50630055,0.00015711,2]
[418977370,1774703441008,-4886.14944397,0.00015711,2]
[418977371,1774703441019,-277.0,0.0001579,2]
[418977372,1774703441029,-433.0,0.00015818,2]
[418977373,1774703441039,-170.06720583,0.00015846,2]
[418977374,1774703441049,-235.0,0.00015851,2]
[418977375,1774703441058,-25115.77787923,0.00015898,2]
[418977376,1774703441085,-262.632924,0.00015898,2]
[418977377,1774703441097,-7624.79319677,0.00015898,2]
[418977378,1774703441107,-1000.0,0.00015898,2]
[418977379,1774703441118,-500.0,0.00015899,2]
[418977380,1774703441130,-1130.50630055,0.000159,2]
[418977381,1774703441140,-204.62671032,0.000159,2]
[418977382,1774703441151,-7378.76647424,0.000159,2]
[418977383,1774703441161,-4886.14944397,0.000159,2]
[418977384,1774703441171,-167.35574662,0.0001599,2]
[418977385,1774703441180,-151.0,0.00015997,2]
[418977386,1774703441190,-151.0,0.00015997,2]
[418977387,1774703441201,-2629.5577274,0.00015998,2]
[418977388,1774703441212,-427328.0868946,0.00015998,2]
[418977389,1774703441221,-16294.1847421,0.00015998,2]
[418977390,1774703441231,-2784.14804,0.00015998,2]
[418977391,1774703441241,-59703.7601132,0.00015998,2]
[418977392,1774703441251,-22022.2004912,0.00015998,2]
[418977393,1774703441260,-1952.0,0.00016,5]
[418977394,1774703441271,-3041191.77904507,0.00016,2]
[418977395,1774703441283,-2750203.28636956,0.00016,2]
[418977398,1774703443366,-3000.0,0.00042,120]
[418977399,1774703443440,-3060.0,0.000425,120]
[418977400,1774703443478,-3121.2,0.00043,120]
[418977401,1774703443521,-3183.62,0.000435,120]
[418977404,1774703443573,-3247.29,0.00044,120]
[418977405,1774703443613,-3312.24,0.000445,120]
[418977406,1774703443659,-3378.48,0.00045,120]
[418977407,1774703443799,-3446.05,0.000455,120]
[418977408,1774703443838,-3514.97,0.00046,120]
[418977409,1774703443881,-558418.0160415,0.000464,120]
[418977410,1774703443921,-1000000.0,0.000464,120]
[418977411,1774703443961,-1000000.0,0.000464,120]
[418977412,1774703444000,-1000000.0,0.000464,120]
[418977413,1774703444040,-1000000.0,0.000464,120]
[418977414,1774703444080,-412318.1339585,0.000464,120]
[418977415,1774703444100,-1404.4910622,0.00016,2]
[418977424,1774703465281,-4147.505,0.00014095,2]
[418977425,1774703465291,-354.981345,0.0001568,7]
[418977426,1774703465302,-2059.86816163,0.000159,2]
[418977427,1774703465311,-1237926.23183837,0.00016,2]
[418977428,1774703465324,-70399.28249453,0.00016,2]